bitfinex/quotes_ETHUSD_20260207
["timestamp","ask_amount","ask_price","bid_price","bid_amount"]
[1770487991029,1.1,2068.6,2067.6,0.91555971]
[1770487991929,2.04351909,2068.6,2068.2,0.001]
[1770487995832,0.94351909,2068.5,2068.0,0.001]
[1770487999821,0.94351909,2068.4,2068.0,0.001]
[1770488004636,0.94351909,2068.4,2068.2,0.001]
[1770488004942,0.94351909,2068.4,2068.0,0.001]
[1770488005322,0.94351909,2068.4,2067.6,0.001]
[1770488005521,5.098,2068.5,2067.6,0.97640286]
[1770488005733,0.94351909,2068.4,2067.6,0.97640286]
[1770488006018,0.94351909,2068.2,2067.6,0.001]
[1770488010159,0.94351909,2068.2,2067.5,0.97540286]
[1770488010160,0.94351909,2068.2,2067.5,0.92640286]
[1770488014364,0.94351909,2068.2,2067.4,0.97640286]
[1770488016269,0.94351909,2068.2,2067.7,0.001]
[1770488016677,0.002,2068.1,2067.7,0.001]
[1770488016877,0.96753943,2068.1,2067.7,0.001]
[1770488017254,0.96553943,2068.0,2067.5,0.001]
[1770488017552,0.002,2068.1,2067.5,0.99081863]
[1770488019189,0.002,2068.3,2067.5,0.99081863]
[1770488019190,0.002,2068.3,2067.7,0.98981863]
[1770488019554,0.002,2068.3,2067.9,0.98981863]
[1770488021546,0.002,2068.3,2067.5,0.02789815]
[1770488021547,0.002,2068.3,2067.5,0.99081863]
[1770488028987,0.002,2068.3,2067.8,0.98981863]
[1770488029187,0.002,2068.8,2068.1,0.98981863]
[1770488029986,0.002,2068.8,2068.3,0.98981863]
[1770488034270,0.002,2068.8,2068.6,0.98981863]
[1770488034581,0.002,2069.1,2068.8,0.98981863]
[1770488035085,1e-08,2069.3,2068.9,0.98981863]
[1770488039386,0.002,2069.6,2069.2,0.98981863]
[1770488040302,0.002,2069.7,2069.3,0.98981863]
[1770488042306,0.002,2069.7,2068.5,0.02789815]
[1770488042307,0.96753943,2069.3,2068.5,0.001]
[1770488042597,0.002,2069.3,2068.6,0.98981863]
[1770488042781,0.002,2069.3,2068.5,0.001]
[1770488042980,0.002,2069.3,2068.5,0.99081863]
[1770488044581,0.002,2069.3,2068.7,1.01671678]
[1770488047101,0.002,2069.3,2068.8,1.20843]
[1770488047305,0.002,2069.5,2069.1,0.95669044]
[1770488048706,0.002,2069.5,2068.6,4.83401918]
[1770488048707,0.91222778,2069.4,2068.3,0.95769044]
[1770488048909,0.91222778,2069.4,2068.4,0.02689815]
[1770488049585,0.91222778,2069.4,2068.3,0.95769044]
[1770488049787,0.91222778,2069.4,2068.3,0.001]
[1770488052109,0.91222778,2069.4,2068.6,0.02689815]
[1770488052288,0.002,2069.5,2068.6,0.9793504]
[1770488052485,0.002,2069.5,2068.7,0.95245225]
[1770488052486,0.99505342,2069.5,2068.7,0.95245225]
[1770488053404,0.002,2069.5,2068.8,0.9793504]
[1770488053716,0.99505342,2069.5,2068.8,0.95245225]
[1770488055010,0.002,2069.3,2068.8,0.95245225]
[1770488064920,0.002,2069.3,2068.7,0.001]
[1770488065232,0.99505342,2069.3,2068.7,0.001]
[1770488066924,0.99505342,2069.3,2069.0,0.001]
[1770488067307,0.99305342,2069.0,2068.7,0.001]
[1770488067509,0.99305342,2069.0,2068.8,0.001]
[1770488068016,0.002,2069.1,2068.8,0.001]
[1770488068212,0.99505342,2069.1,2068.8,0.001]
[1770488071125,0.99505342,2069.1,2067.7,0.001]
[1770488071324,0.99305342,2068.7,2067.7,0.001]
[1770488071710,0.99305342,2068.7,2067.7,0.95345225]
[1770488072203,0.99305342,2068.7,2067.7,0.001]
[1770488075524,0.002,2069.1,2068.1,0.92791944]
[1770488075726,0.93050625,2069.1,2068.1,0.92791944]
[1770488079136,0.002,2069.1,2068.3,0.95481759]
[1770488079807,0.002,2069.1,2068.3,0.95581759]
[1770488080114,0.002,2068.9,2068.3,0.95581759]
[1770488083330,0.002,2068.9,2068.3,0.92891944]
[1770488083630,0.93050625,2068.9,2068.3,0.001]
[1770488090829,0.93050625,2068.9,2068.0,0.001]
[1770488090830,0.92850625,2068.8,2068.0,0.001]
[1770488091411,0.92850625,2068.8,2068.0,0.92891944]
[1770488091631,0.002,2068.9,2068.0,0.92891944]
[1770488092339,0.002,2068.9,2068.3,0.001]
[1770488092532,0.002,2068.9,2068.3,0.92891944]
[1770488093844,0.002,2068.9,2068.3,0.001]
[1770488094942,0.93050625,2068.9,2068.3,0.001]
[1770488095329,0.002,2068.9,2068.3,0.001]
[1770488096426,0.93050625,2068.9,2068.3,0.001]
[1770488096626,0.93050625,2068.9,2068.0,0.001]
[1770488096627,0.92850625,2068.8,2068.0,0.001]
[1770488096834,0.92850625,2068.7,2068.0,0.001]
[1770488100428,0.93050625,2068.9,2068.0,0.92891944]
[1770488100628,0.92850625,2068.7,2068.0,0.001]
[1770488101482,0.93050625,2068.9,2068.0,0.92891944]
[1770488101928,0.002,2068.9,2068.0,0.92891944]
[1770488102128,0.92850625,2068.8,2068.0,0.001]
[1770488102360,0.92850625,2068.8,2068.0,0.92891944]
[1770488103538,0.92850625,2068.8,2068.2,0.001]
[1770488103867,0.002,2068.7,2068.2,0.001]
[1770488105656,0.002,2068.7,2068.2,0.95019066]
[1770488107774,0.002,2068.7,2068.2,0.001]
[1770488108392,1.00098069,2068.7,2068.0,0.001]
[1770488109970,0.002,2068.7,2068.1,0.94919066]
[1770488111077,0.002,2068.9,2068.3,0.97650013]
[1770488111251,0.002,2068.9,2068.0,0.001]
[1770488111449,0.002,2068.9,2068.0,0.97750013]
[1770488116593,0.002,2068.9,2068.5,0.97650013]
[1770488116995,0.002,2068.7,2068.5,0.97650013]
[1770488118567,0.99606796,2068.7,2068.2,0.001]
[1770488118870,0.002,2068.7,2068.2,0.001]
[1770488119076,0.002,2068.7,2068.3,0.97650013]
[1770488120203,0.002,2068.7,2068.5,0.97650013]
[1770488124195,0.002,2068.7,2068.3,0.97650013]
[1770488125299,0.002,2068.7,2068.2,0.001]
[1770488127896,0.002,2068.7,2068.2,0.97750013]
[1770488128076,0.002,2068.7,2068.2,1.00439828]
[1770488128478,0.002,2068.7,2068.5,1.00339828]
[1770488129494,0.002,2068.7,2068.5,0.97650013]
[1770488130285,0.002,2068.9,2068.5,0.97650013]
[1770488130286,0.90406796,2069.5,2068.5,0.97650013]
[1770488141411,0.90406796,2069.5,2068.7,0.92983641]
[1770488142097,0.90406796,2069.5,2068.7,0.93083641]
[1770488142286,0.002,2069.3,2068.7,0.93083641]
[1770488143687,0.98359329,2069.3,2068.7,0.001]
[1770488151128,0.002,2069.3,2068.7,0.93083641]
[1770488152022,0.98359329,2069.3,2068.7,0.001]
[1770488152517,0.98359329,2069.3,2068.7,0.93083641]
[1770488154311,0.002,2069.3,2068.7,0.93083641]
[1770488154719,0.002,2069.5,2068.7,0.93083641]
[1770488154720,0.002,2069.5,2069.0,0.92983641]
[1770488155033,0.002,2069.5,2068.7,0.001]
[1770488155034,0.98359329,2069.5,2068.7,0.001]
[1770488155240,0.98359329,2069.5,2068.7,0.93083641]
[1770488155538,0.002,2069.5,2068.7,0.93083641]
[1770488160850,0.98159329,2069.4,2068.7,0.001]
[1770488162155,0.98159329,2069.4,2068.7,0.93083641]
[1770488164363,0.98159329,2069.3,2068.7,0.001]
[1770488165574,0.002,2069.5,2068.7,0.90501917]
[1770488166569,0.002,2069.5,2068.9,0.90401917]
[1770488166943,0.002,2069.5,2068.9,0.90501917]
[1770488167138,0.002,2069.5,2068.9,0.001]
[1770488167139,0.002,2069.3,2068.9,0.001]
[1770488167359,0.92785619,2069.3,2068.9,0.001]
[1770488168868,0.002,2069.3,2068.9,0.001]
[1770488170285,0.002,2069.3,2068.9,0.90501917]
[1770488170576,0.002,2069.3,2068.9,0.001]
[1770488170766,0.002,2069.3,2068.9,0.94587875]
[1770488171287,0.002,2069.3,2068.9,0.001]
[1770488172144,0.91207812,2069.3,2068.9,0.001]
[1770488172343,0.002,2069.3,2068.9,0.001]
[1770488172754,0.002,2069.3,2068.9,0.94587875]
[1770488172955,0.002,2069.3,2068.9,0.001]
[1770488173166,0.91207812,2069.3,2068.9,0.001]
[1770488173366,0.91007812,2069.1,2068.7,0.001]
[1770488174276,0.91207812,2069.3,2068.7,0.001]
[1770488174444,0.002,2069.3,2068.7,0.001]
[1770488174645,0.91207812,2069.3,2068.7,0.001]
[1770488179752,0.91007812,2069.1,2068.7,0.001]
[1770488180465,0.91007812,2069.1,2068.9,0.001]
[1770488180673,0.91207812,2069.1,2068.9,0.001]
[1770488182378,0.91207812,2069.1,2068.7,0.001]
[1770488182568,0.002,2069.1,2068.7,0.001]
[1770488183477,0.91207812,2069.1,2068.7,0.001]
[1770488184179,0.002,2069.1,2068.7,0.001]
[1770488184977,0.002,2069.1,2068.7,0.94587875]
[1770488185279,0.002,2069.1,2068.7,0.001]
[1770488186581,0.91207812,2069.1,2068.7,0.001]
[1770488193295,0.91207812,2069.1,2068.9,0.001]
[1770488193501,0.91207812,2069.1,2068.7,0.001]
[1770488193702,0.002,2068.9,2068.7,0.001]
[1770488196575,0.002,2068.9,2068.5,0.85787875]
[1770488197801,0.97663711,2069.3,2068.9,0.93239849]
[1770488197802,0.002,2069.3,2068.9,0.93239849]
[1770488197980,0.002,2069.8,2069.4,0.93239849]
[1770488200008,0.002,2069.9,2069.6,0.93239849]
[1770488200209,0.3277738,2070.5,2069.7,0.93239849]
[1770488200378,1.30241091,2070.5,2069.7,0.93239849]
[1770488201078,0.3277738,2070.5,2069.7,0.93239849]
[1770488202904,0.3277738,2070.5,2069.1,0.02689815]
[1770488202905,0.97463711,2069.9,2068.9,0.93239849]
[1770488203080,0.97463711,2070.2,2069.1,0.93239849]
[1770488203287,0.97463711,2070.2,2068.9,0.02689815]
[1770488203288,0.3277738,2070.5,2069.5,0.93239849]
[1770488204907,0.97463711,2070.4,2069.5,0.93239849]
[1770488205092,4.46745317,2070.2,2069.2,0.93239849]
[1770488205298,0.97463711,2070.1,2069.2,0.93239849]
[1770488205500,0.97663711,2070.3,2069.2,0.93239849]
[1770488205700,0.002,2070.3,2069.2,0.93239849]
[1770488205915,0.97663711,2070.3,2069.2,0.93239849]
[1770488208394,0.002,2070.3,2069.2,0.93239849]
[1770488208594,5.44209028,2070.2,2069.2,0.93239849]
[1770488209324,4.46745317,2070.2,2069.2,0.93239849]
[1770488210100,5.44209028,2070.2,2069.2,0.93239849]
[1770488210500,4.46745317,2070.2,2069.2,0.93239849]
[1770488210699,0.002,2070.3,2069.4,0.93239849]
[1770488211522,0.97663711,2070.3,2069.4,0.93239849]
[1770488212127,0.002,2070.3,2069.4,0.93239849]
[1770488213241,0.97463711,2070.1,2069.1,0.93339849]
[1770488213396,0.3297738,2070.5,2069.6,0.93239849]
[1770488213595,0.3297738,2070.5,2069.5,1.20802126]
[1770488213596,0.09910838,2070.5,2070.1,0.95929664]
[1770488213903,4.46945317,2071.4,2070.1,0.95929664]
[1770488213904,4.46945317,2071.4,2070.8,0.93239849]
[1770488214118,0.002,2071.4,2071.2,0.02689815]
[1770488214301,0.37843242,2072.1,2071.4,0.93239849]
[1770488214495,0.37843242,2072.1,2071.7,0.93239849]
[1770488214925,0.37843242,2072.1,2071.4,0.93239849]
[1770488216000,0.37843242,2072.1,2071.0,0.93239849]
[1770488216195,0.37843242,2072.1,2071.2,0.95929664]
[1770488216499,0.37843242,2072.1,2071.2,0.93239849]
[1770488217599,0.97463711,2072.0,2070.7,0.95929664]
[1770488217806,0.97463711,2072.0,2070.7,0.93239849]
[1770488218640,0.97663711,2071.9,2070.7,0.93239849]
[1770488220130,0.002,2071.9,2070.9,0.93239849]
[1770488220349,0.002,2071.9,2071.5,0.93239849]
[1770488220548,0.38043242,2072.1,2071.6,0.95929664]
[1770488220841,0.38043242,2072.1,2071.1,0.02689815]
[1770488220842,0.002,2072.1,2071.1,0.93239849]
[1770488221925,0.002,2072.1,2071.3,0.93239849]
[1770488222321,0.002,2072.1,2071.2,0.02689815]
[1770488222322,0.002,2072.1,2071.5,0.95929664]
[1770488222526,0.002,2072.1,2071.5,0.93239849]
[1770488222725,0.002,2072.1,2071.2,0.95929664]
[1770488222937,0.002,2072.1,2071.2,0.93239849]
[1770488223147,0.002,2072.1,2071.3,0.02689815]
[1770488223450,0.002,2072.1,2071.3,0.95929664]
[1770488225337,0.002,2072.1,2071.1,0.93757639]
[1770488229025,0.92438455,2072.1,2071.1,0.91067824]
[1770488229222,0.002,2073.0,2071.9,0.91067824]
[1770488229425,0.002,2073.0,2072.1,0.91067824]
[1770488229737,0.35216873,2074.3,2073.0,0.91067824]
[1770488230721,0.35216873,2074.3,2073.2,0.91067824]
[1770488230931,0.35216873,2074.3,2073.3,0.95590582]
[1770488231126,0.35216873,2074.3,2073.5,0.95590582]
[1770488231524,0.35216873,2074.3,2073.7,0.98483821]
[1770488231729,0.25171056,2075.3,2073.8,0.95590582]
[1770488232023,0.97152699,2075.7,2074.0,0.95590582]
[1770488232024,0.003,2075.7,2074.0,0.95590582]
[1770488232228,0.9425946,2075.7,2074.0,0.95590582]
[1770488232446,0.9425946,2075.7,2074.2,0.95590582]
[1770488233446,0.9425946,2075.7,2074.3,0.98483821]
[1770488233750,0.9425946,2075.7,2074.3,0.95590582]
[1770488234752,0.9395946,2075.3,2073.6,1.23451834]
[1770488234950,0.9395946,2075.3,2073.7,0.95590582]
[1770488235343,0.9395946,2075.3,2073.3,0.02893239]
[1770488235344,0.9395946,2074.9,2073.3,0.98483821]
[1770488235784,0.9395946,2074.9,2073.6,0.95590582]
[1770488236066,0.9395946,2074.7,2073.2,0.98483821]
[1770488236374,0.9395946,2074.7,2073.2,0.95590582]
[1770488238269,0.9395946,2074.7,2072.9,2.19086957]
[1770488238566,0.9395946,2074.7,2073.0,0.95590582]
[1770488238774,0.9395946,2074.7,2073.2,0.98483821]
[1770488238996,0.9395946,2075.0,2073.6,0.02893239]
[1770488239134,5.03093657,2075.5,2074.0,0.95590582]
[1770488239334,0.9395946,2075.4,2074.0,0.95590582]
[1770488240065,0.9395946,2075.4,2074.1,0.02893239]
[1770488240299,0.9395946,2075.4,2074.0,0.95590582]
[1770488241968,0.9395946,2075.0,2073.4,1.20571444]
[1770488242192,0.9395946,2075.0,2073.3,0.98483821]
[1770488242870,5.97053117,2075.1,2073.3,0.98483821]
[1770488243072,0.9395946,2075.4,2073.9,0.98483821]
[1770488243287,0.9395946,2075.4,2073.9,0.95590582]
[1770488243487,0.9395946,2075.4,2073.9,0.98483821]
[1770488243705,0.003,2075.7,2074.6,0.95590582]
[1770488244003,0.003,2075.7,2074.8,0.02893239]
[1770488244207,0.003,2075.7,2074.6,0.95590582]
[1770488244370,0.002,2074.8,2074.6,0.95590582]
[1770488244769,0.002,2075.0,2074.6,0.95590582]
[1770488245068,0.003,2075.7,2074.8,0.98483821]
[1770488245274,0.002,2075.6,2074.9,0.98483821]
[1770488245474,0.003,2075.7,2074.9,0.98483821]
[1770488245689,0.1367251,2075.8,2075.3,0.95590582]
[1770488246089,0.1367251,2075.8,2075.4,0.02893239]
[1770488246283,0.1387251,2075.8,2074.9,0.02893239]
[1770488246493,0.1387251,2075.8,2074.9,0.98483821]
[1770488246700,0.1387251,2075.8,2075.2,0.02893239]
[1770488246875,0.1387251,2075.8,2074.9,0.95590582]
[1770488247509,1.0783197,2075.8,2074.3,0.95590582]
[1770488247709,1.0783197,2075.8,2073.5,0.95590582]
[1770488247710,0.96852699,2075.4,2073.5,0.95590582]
[1770488247888,0.96852699,2075.4,2073.8,0.95590582]
[1770488248208,0.002,2075.3,2074.0,0.95590582]
[1770488248398,0.9415946,2075.6,2074.0,0.95590582]
[1770488249504,0.9415946,2075.6,2073.7,0.95590582]
[1770488249505,1.0419946,2075.5,2073.7,0.95590582]
[1770488250004,0.9395946,2075.3,2073.7,0.95590582]
[1770488250182,5.03093657,2075.2,2073.7,0.95590582]
[1770488250387,5.03293657,2075.2,2073.7,0.95590582]
[1770488250898,0.002,2075.2,2073.9,0.95590582]
[1770488251589,0.002,2075.2,2074.1,0.98483821]
[1770488251783,0.002,2075.2,2074.1,0.95590582]
[1770488252110,0.002,2075.1,2074.1,0.95590582]
[1770488252304,0.002,2075.5,2074.1,0.95590582]
[1770488252907,0.002,2075.5,2074.2,0.98483821]
[1770488253207,0.002,2075.5,2074.2,0.95590582]
[1770488253404,0.9395946,2075.4,2073.9,0.95590582]
[1770488253982,0.002,2075.3,2074.3,0.98483821]
[1770488254285,0.002,2075.7,2074.7,0.95590582]
[1770488255296,0.002,2075.7,2075.0,0.95590582]
[1770488256026,0.32951004,2076.5,2075.4,0.02893239]
[1770488256308,0.25154755,2077.2,2075.8,0.9650342]
[1770488256509,0.93745709,2077.4,2076.0,0.99396659]
[1770488256898,0.93745709,2077.0,2075.3,0.9650342]
[1770488257097,0.93745709,2076.6,2075.0,0.9650342]
[1770488257492,0.02893239,2076.0,2075.0,0.9650342]
[1770488257899,0.002,2076.2,2075.0,0.9650342]
[1770488258515,0.96638948,2075.6,2073.9,0.9650342]
[1770488258726,5.05986896,2076.0,2073.9,0.9650342]
[1770488258882,0.02893239,2075.6,2074.0,0.9650342]
[1770488259080,0.02893239,2075.6,2074.2,0.9650342]
[1770488259509,0.002,2076.2,2074.3,0.9650342]
[1770488259712,0.002,2076.2,2074.3,0.99396659]
[1770488259912,0.002,2076.2,2074.5,0.9650342]
[1770488263703,0.002,2076.2,2074.6,0.99396659]
[1770488264689,0.02893239,2076.1,2074.6,0.9650342]
[1770488265091,0.002,2076.2,2074.6,0.9650342]
[1770488266952,0.93745709,2076.0,2074.3,0.9650342]
[1770488267154,0.93745709,2075.8,2074.3,0.9650342]
[1770488268437,0.002,2076.2,2074.4,0.02893239]
[1770488268608,0.002,2076.2,2074.5,0.9650342]
[1770488268609,0.93945709,2076.2,2074.5,0.9650342]
[1770488268813,0.002,2076.2,2074.5,0.9650342]
[1770488269136,0.002,2076.2,2074.8,0.001]
[1770488269339,0.002,2076.2,2074.8,0.9660342]
[1770488270630,0.002,2076.2,2074.9,0.2335703]
[1770488270839,0.002,2076.2,2075.0,0.99396659]
[1770488271543,0.002,2076.2,2075.4,0.9650342]
[1770488272736,0.0408428,2077.1,2075.3,0.02893239]
[1770488272942,0.0408428,2077.1,2075.4,1.1986045]
[1770488274349,1.00723228,2077.1,2075.4,0.9650342]
[1770488274837,0.97829989,2077.1,2075.6,0.9650342]
[1770488275819,0.0408428,2077.1,2075.6,0.9650342]
[1770488276021,0.97829989,2077.1,2075.6,0.9650342]
[1770488278661,1.00723228,2077.1,2075.6,0.9650342]
[1770488279060,0.97829989,2077.1,2075.6,0.9650342]
[1770488279768,0.97829989,2077.1,2075.8,0.9650342]
[1770488280738,0.97829989,2077.1,2075.0,0.40173032]
[1770488280961,0.93745709,2076.7,2074.9,0.9650342]
[1770488281134,0.93745709,2076.7,2075.2,0.9650342]
[1770488281339,0.93745709,2076.7,2074.8,0.9660342]
[1770488281340,0.96638948,2076.7,2074.8,0.9660342]
[1770488281948,0.96638948,2076.7,2075.6,0.001]
[1770488282377,0.93745709,2076.6,2075.6,0.001]
[1770488282540,0.02893239,2076.7,2075.6,0.001]
[1770488282541,0.93745709,2076.3,2075.6,0.001]
[1770488282742,0.93745709,2076.1,2074.8,0.001]
[1770488283062,0.93745709,2075.9,2074.8,0.001]
[1770488284083,0.93745709,2075.7,2074.8,0.001]
[1770488285465,5.93900179,2076.0,2074.8,0.001]
[1770488285685,0.90806522,2075.8,2074.8,0.001]
[1770488285867,2.11225846,2076.1,2074.8,0.001]
[1770488286071,0.90806522,2076.0,2074.8,0.001]
[1770488287539,1.20406841,2076.3,2074.8,0.96787243]
[1770488287743,0.93699761,2076.2,2074.8,0.001]
[1770488288243,0.90806522,2075.8,2074.8,0.001]
[1770488288563,5.03093657,2075.9,2074.8,0.001]
[1770488288863,0.90806522,2075.8,2074.8,0.001]
[1770488290468,2.11247818,2075.7,2074.8,0.001]
[1770488290677,0.90806522,2075.6,2074.8,0.001]
[1770488290845,0.93699761,2075.6,2074.5,0.001]
[1770488291368,4.96989363,2075.5,2074.5,0.001]
[1770488292064,4.0,2075.5,2074.5,0.90550032]
[1770488294459,0.96989363,2075.5,2074.5,0.001]
[1770488295984,0.96989363,2075.6,2074.7,0.001]
[1770488296275,0.96989363,2075.6,2074.5,0.001]
[1770488296276,0.96989363,2075.2,2074.5,0.001]
[1770488298669,0.96989363,2075.1,2073.6,0.90450032]
[1770488298872,4.96989363,2075.1,2073.6,0.90450032]
[1770488299381,0.96989363,2075.0,2073.6,0.90450032]
[1770488301866,0.96989363,2074.8,2073.6,0.90450032]
[1770488302679,1.20487734,2074.9,2073.6,0.90450032]
[1770488302884,4.0,2074.7,2073.8,0.90450032]
[1770488303073,0.99882602,2075.6,2073.8,0.90450032]
[1770488303385,0.96989363,2075.6,2073.8,0.90450032]
[1770488305284,0.02893239,2075.1,2073.5,0.001]
[1770488305580,0.96989363,2075.0,2073.5,0.90550032]
[1770488305756,0.96989363,2075.4,2073.6,0.02893239]
[1770488305964,0.96989363,2075.4,2073.7,0.90450032]
[1770488306160,2.17432072,2075.7,2074.0,0.90450032]
[1770488306389,0.96989363,2075.7,2074.0,0.90450032]
[1770488307362,0.96989363,2075.5,2074.0,0.90450032]
[1770488307562,0.96989363,2075.5,2074.0,0.85450032]
[1770488308989,0.97189363,2075.5,2074.0,0.85450032]
[1770488309384,0.97189363,2075.5,2074.2,0.90450032]
[1770488309569,0.002,2075.5,2074.8,0.90450032]
[1770488309891,0.002,2075.5,2074.5,0.90450032]
[1770488310193,0.002,2075.5,2074.8,0.90450032]
[1770488310411,0.002,2075.7,2075.0,0.02893239]
[1770488310696,0.002,2075.7,2075.1,0.90450032]
[1770488311273,0.002,2075.7,2075.2,0.02893239]
[1770488311598,0.0408428,2077.1,2075.7,0.90450032]
[1770488311802,0.0408428,2077.1,2075.9,0.90450032]
[1770488313176,0.0408428,2077.1,2076.2,0.90450032]
[1770488314001,0.0408428,2077.1,2076.5,0.90450032]
[1770488315097,0.0408428,2077.1,2076.2,0.90450032]
[1770488315886,0.0408428,2077.1,2076.3,0.02893239]
[1770488316208,0.0408428,2077.1,2076.4,0.97215692]
[1770488317100,0.0408428,2077.1,2075.8,1.20433117]
[1770488317101,0.92461471,2077.0,2075.8,0.02893239]
[1770488317311,0.0408428,2077.1,2075.8,1.00108931]
[1770488317678,0.92461471,2077.0,2075.8,0.97215692]
[1770488317877,0.92461471,2077.0,2075.3,0.97215692]
[1770488317878,0.92461471,2076.9,2075.3,0.97215692]
[1770488320807,0.92461471,2076.7,2074.7,1.00108931]
[1770488321402,0.92461471,2076.7,2074.9,0.02893239]
[1770488321619,0.92461471,2076.7,2075.0,0.97215692]
[1770488322205,0.9535471,2076.7,2075.5,0.001]
[1770488322408,0.92461471,2076.6,2075.5,0.001]
[1770488323392,0.92461471,2076.4,2075.5,0.001]
[1770488323791,0.9535471,2076.4,2075.3,0.001]
[1770488323991,0.92461471,2076.0,2075.3,0.001]
[1770488324515,0.92461471,2076.0,2074.4,0.97215692]
[1770488325289,0.1024,2076.3,2074.4,0.97215692]
[1770488325290,1.20429693,2075.9,2074.4,0.97215692]
[1770488325499,0.92461471,2075.8,2074.1,0.97215692]
[1770488325993,0.9535471,2075.8,2074.1,0.97215692]
[1770488326391,0.9535471,2075.8,2073.8,0.97315692]
[1770488326691,0.92461471,2075.4,2073.8,0.001]
[1770488326890,0.92461471,2075.4,2073.8,0.97315692]
[1770488327299,0.92461471,2075.2,2073.8,0.97315692]
[1770488327506,0.9535471,2075.2,2073.8,0.001]
[1770488328213,0.92461471,2074.8,2073.8,0.001]
[1770488329723,0.92461471,2074.7,2073.8,0.001]
[1770488329894,0.92461471,2074.5,2073.8,0.001]
[1770488331833,4.81974166,2075.0,2073.8,0.001]
[1770488331834,4.0,2075.1,2073.8,0.97315692]
[1770488332407,0.92461471,2075.4,2073.8,0.97315692]
[1770488334743,0.9535471,2075.4,2073.8,0.97315692]
[1770488336143,0.9535471,2075.4,2074.0,0.001]
[1770488336347,0.92661471,2075.2,2074.0,0.001]
[1770488338331,0.92661471,2075.2,2074.0,0.97315692]
[1770488340414,0.002,2075.2,2074.0,0.97315692]
[1770488340656,0.92461471,2075.1,2074.0,0.001]
[1770488341356,0.92461471,2075.1,2074.0,0.97315692]
[1770488341517,0.002,2075.2,2074.2,0.97215692]
[1770488342530,0.002,2075.2,2074.5,0.97215692]
[1770488345171,0.002,2075.2,2074.7,0.97215692]
[1770488345473,0.002,2075.4,2074.7,0.97215692]
[1770488346030,0.002,2076.7,2075.0,0.92227048]
[1770488346253,0.91827795,2076.7,2075.0,0.92227048]
[1770488347541,0.002,2076.7,2075.3,0.92227048]
[1770488348954,0.002,2076.5,2075.3,0.92227048]
[1770488349140,0.002,2076.5,2075.6,0.92227048]
[1770488350141,0.002,2076.5,2075.0,1.02467048]
[1770488350341,0.002,2076.5,2075.0,0.92227048]
[1770488350534,0.002,2076.5,2074.6,1.23396053]
[1770488350535,0.002,2076.5,2075.2,0.92227048]
[1770488353000,0.002,2076.5,2075.4,0.95558133]
[1770488353983,0.99653077,2076.4,2074.7,0.95558133]
[1770488354141,0.99653077,2076.4,2075.0,0.95558133]
[1770488354846,0.002,2076.5,2075.2,0.95558133]
[1770488355744,0.002,2076.5,2075.4,0.98451372]
[1770488356595,0.002,2076.5,2075.8,0.95558133]
[1770488358669,0.002,2076.5,2075.9,0.95558133]
[1770488359044,0.002,2076.5,2076.1,0.95558133]
[1770488362590,0.002,2076.7,2076.0,0.95558133]
[1770488364372,0.0408428,2077.1,2076.0,0.95558133]
[1770488364773,0.0408428,2077.1,2075.5,0.001]
[1770488364774,1.03737357,2077.1,2075.5,0.001]
[1770488365169,1.03737357,2077.1,2075.5,0.95658133]
[1770488365380,5.089,2078.0,2076.4,0.02893239]
[1770488365693,0.99653077,2078.5,2077.2,0.95558133]
[1770488365908,0.99653077,2078.4,2077.2,0.95558133]
[1770488366060,0.99653077,2078.4,2076.9,0.95558133]
[1770488366485,5.13957732,2078.7,2077.1,0.95558133]
[1770488366486,0.32872556,2078.7,2077.1,0.95558133]
[1770488366672,0.99653077,2078.6,2077.1,0.95558133]
[1770488367070,0.99653077,2078.6,2076.7,0.02893239]
[1770488367071,0.99653077,2078.6,2077.3,0.98451372]
[1770488367273,1.20233715,2079.3,2077.3,0.98451372]
[1770488367274,0.4838,2081.8,2078.7,0.95558133]
[1770488367513,4.80279143,2082.3,2080.8,0.25125097]
[1770488367514,0.25124591,2082.3,2080.8,0.25125097]
[1770488367723,0.31741039,2082.2,2080.8,0.25125097]
[1770488368015,1.02546316,2082.0,2080.0,0.2335703]
[1770488368171,0.99653077,2081.7,2080.1,0.434959]
[1770488368370,3.18169019,2081.9,2080.2,0.434959]
[1770488368596,0.99653077,2081.7,2080.3,0.434959]
[1770488368797,0.99653077,2081.7,2080.4,0.434959]
[1770488368978,0.99653077,2081.5,2080.5,0.434959]
[1770488369179,0.06615942,2081.6,2080.2,0.98451372]
[1770488369370,0.06615942,2081.6,2080.0,0.95558133]
[1770488369709,1.06269019,2081.6,2079.6,0.98451372]
[1770488369878,1.06269019,2081.6,2079.7,0.43208263]
[1770488370076,3.11853077,2081.5,2079.6,0.98451372]
[1770488370403,0.06615942,2081.4,2079.9,0.02893239]
[1770488370703,0.99653077,2080.9,2079.2,5.65444365]
[1770488370882,0.99653077,2080.7,2078.7,0.02893239]
[1770488371201,0.99653077,2080.5,2078.8,0.02893239]
[1770488371418,0.02893239,2080.3,2078.8,0.95558133]
[1770488371700,1.02546316,2079.7,2077.8,0.98451372]
[1770488372083,0.06615942,2079.6,2077.8,0.95558133]
[1770488372280,1.715,2079.5,2077.8,0.95558133]
[1770488372484,2.106,2079.4,2078.0,0.95558133]
[1770488372802,2.18915942,2079.4,2078.0,0.95558133]
[1770488373473,1.02546316,2079.3,2077.2,0.95558133]
[1770488373799,0.02893239,2079.0,2077.2,0.95558133]
[1770488374181,0.06615942,2078.9,2077.2,0.95558133]
[1770488374389,1.06269019,2079.1,2077.2,0.95558133]
[1770488374587,1.23143359,2079.0,2077.2,0.95558133]
[1770488374789,0.99653077,2078.9,2077.2,0.95558133]
[1770488375005,1.06269019,2078.9,2077.2,0.95558133]
[1770488375524,1.06269019,2078.9,2076.7,0.02893239]
[1770488375525,0.99254086,2078.7,2076.8,0.92298064]
[1770488375889,2.18615942,2078.6,2077.0,0.95191303]
[1770488376120,0.06615942,2078.6,2077.0,0.95191303]
[1770488376287,2.121,2078.5,2077.0,0.95191303]
[1770488376487,0.06615942,2078.6,2077.0,0.95191303]
[1770488376895,2.12,2078.5,2077.0,0.95191303]